[Event "Titled Tuesday Blitz March 21 Early 2023"]
[White "Sreyas Payyappat"]
[Black "Cuenca Jimenez, Jose Fernando"]
[WhiteFideId "46674969"]
[BlackFideId "2255570"]
[WhiteElo "2083"]
[BlackElo "2429"]
[Result "1-0"]
[Round "07"]
[TimeControl "180+2"]
[Date "2023.03.21"]
[WhiteClock "0:00:16"]
[BlackClock "0:00:05"]

1. e4 {[%clk 0:02:43]}  d6 {[%clk 0:02:55]} 2. d4 {[%clk 0:02:43]}  Nf6 {[%clk 0:02:55]} 3. Nc3 {[%clk 0:02:44]}  e5 {[%clk 0:02:56]} 4. dxe5 {[%clk 0:02:44]}  dxe5 {[%clk 0:02:56]} 5. Qxd8+ {[%clk 0:02:45]}  Kxd8 {[%clk 0:02:57]} 6. Bg5 {[%clk 0:02:45]}  Be6 {[%clk 0:02:55]} 7. f4 {[%clk 0:02:42]}  exf4 {[%clk 0:02:52]} 8. e5 {[%clk 0:02:40]}  h6 {[%clk 0:02:33]} 9. O-O-O+ {[%clk 0:02:33]}  Nd7 {[%clk 0:02:30]} 10. Bxf4 {[%clk 0:02:28]}  Ng4 {[%clk 0:02:23]} 11. Nh3 {[%clk 0:02:22]}  Bc5 {[%clk 0:02:15]} 12. Be2 {[%clk 0:01:55]}  Ne3 {[%clk 0:01:49]} 13. Bxe3 {[%clk 0:00:50]}  Bxe3+ {[%clk 0:01:49]} 14. Kb1 {[%clk 0:00:50]}  c6 {[%clk 0:01:37]} 15. Rd3 {[%clk 0:00:46]}  Bb6 {[%clk 0:01:16]} 16. Nf4 {[%clk 0:00:46]}  Kc7 {[%clk 0:00:47]} 17. Nxe6+ {[%clk 0:00:43]}  fxe6 {[%clk 0:00:48]} 18. Rg3 {[%clk 0:00:38]}  g5 {[%clk 0:00:46]} 19. Bg4 {[%clk 0:00:22]}  Rae8 {[%clk 0:00:42]} 20. Bh5 {[%clk 0:00:18]}  Re7 {[%clk 0:00:41]} 21. Na4 {[%clk 0:00:18]}  Nxe5 {[%clk 0:00:39]} 22. Nxb6 {[%clk 0:00:17]}  axb6 {[%clk 0:00:40]} 23. Re1 {[%clk 0:00:17]}  Nc4 {[%clk 0:00:36]} 24. b3 {[%clk 0:00:16]}  Nd6 {[%clk 0:00:35]} 25. Rge3 {[%clk 0:00:15]}  Rf8 {[%clk 0:00:14]} 26. Rxe6 {[%clk 0:00:15]}  Rxe6 {[%clk 0:00:12]} 27. Rxe6 {[%clk 0:00:16]}  Rf2 {[%clk 0:00:12]} 28. Bf3 {[%clk 0:00:15]}  g4 {[%clk 0:00:10]} 29. Bxg4 {[%clk 0:00:15]}  Rxg2 {[%clk 0:00:10]} 30. h3 {[%clk 0:00:15]}  Ne4 {[%clk 0:00:06]} 31. Rxe4 {[%clk 0:00:14]}  Rg3 {[%clk 0:00:02]} 32. Re7+ {[%clk 0:00:14]}  Kd6 {[%clk 0:00:02]} 33. Rxb7 {[%clk 0:00:14]}  h5 {[%clk 0:00:03]} 34. Rd7+ {[%clk 0:00:15]}  Kc5 {[%clk 0:00:03]} 35. Bxh5 {[%clk 0:00:16]}  Rxh3 {[%clk 0:00:03]} 36. Bg4 {[%clk 0:00:16]}  Rg3 {[%clk 0:00:04]} 37. Rg7 {[%clk 0:00:16]}  Kb4 {[%clk 0:00:03]} 38. Kb2 {[%clk 0:00:15]}  c5 {[%clk 0:00:04]} 39. a3+ {[%clk 0:00:16]}  Ka5 {[%clk 0:00:04]} 40. Ra7+ {[%clk 0:00:15]}  Kb5 {[%clk 0:00:05]} 41. Bd7# {[%clk 0:00:16]} 1-0


[Site "https://www.chess.com"]

[Event "Titled Tuesday Blitz March 21 Early 2023"]
[White "Skliarov, Viktor"]
[Black "Yosha_Iglesias"]
[WhiteFideId "14106736"]
[WhiteElo "2289"]
[BlackElo "2473"]
[Result "1/2-1/2"]
[Round "07"]
[TimeControl "180+2"]
[Date "2023.03.21"]
[WhiteClock "0:01:05"]
[BlackClock "0:01:23"]

1. e4 {[%clk 0:03:00]}  c5 {[%clk 0:02:59]} 2. Nf3 {[%clk 0:02:55]}  d6 {[%clk 0:03:00]} 3. d4 {[%clk 0:02:55]}  cxd4 {[%clk 0:03:00]} 4. Qxd4 {[%clk 0:02:56]}  Bd7 {[%clk 0:02:56]} 5. c4 {[%clk 0:02:54]}  Nc6 {[%clk 0:02:55]} 6. Qd2 {[%clk 0:02:54]}  g6 {[%clk 0:02:54]} 7. b3 {[%clk 0:02:55]}  Bg7 {[%clk 0:02:54]} 8. Bb2 {[%clk 0:02:54]}  Nf6 {[%clk 0:02:54]} 9. Nc3 {[%clk 0:02:55]}  O-O {[%clk 0:02:50]} 10. Be2 {[%clk 0:02:55]}  a6 {[%clk 0:02:43]} 11. O-O {[%clk 0:02:53]}  Rc8 {[%clk 0:02:43]} 12. h3 {[%clk 0:02:46]}  Qa5 {[%clk 0:02:36]} 13. Rab1 {[%clk 0:02:46]}  b5 {[%clk 0:02:29]} 14. cxb5 {[%clk 0:02:12]}  axb5 {[%clk 0:02:28]} 15. Bxb5 {[%clk 0:02:07]}  Nxe4 {[%clk 0:02:21]} 16. Nxe4 {[%clk 0:02:06]}  Qxb5 {[%clk 0:02:21]} 17. Bxg7 {[%clk 0:02:06]}  Kxg7 {[%clk 0:02:21]} 18. a4 {[%clk 0:01:47]}  Qb4 {[%clk 0:02:16]} 19. Qe3 {[%clk 0:01:45]}  Bf5 {[%clk 0:02:13]} 20. Rbe1 {[%clk 0:01:12]}  Bxe4 {[%clk 0:02:06]} 21. Qxe4 {[%clk 0:01:13]}  Qxb3 {[%clk 0:02:06]} 22. Nd4 {[%clk 0:01:13]}  Nxd4 {[%clk 0:01:59]} 23. Qxd4+ {[%clk 0:01:13]}  e5 {[%clk 0:01:59]} 24. Qxd6 {[%clk 0:01:13]}  Qxa4 {[%clk 0:01:36]} 25. Qxe5+ {[%clk 0:01:12]}  Kg8 {[%clk 0:01:35]} 26. g3 {[%clk 0:01:11]}  Rce8 {[%clk 0:01:33]} 27. Qf6 {[%clk 0:01:10]}  Rxe1 {[%clk 0:01:31]} 28. Rxe1 {[%clk 0:01:10]}  Re8 {[%clk 0:01:31]} 29. Rxe8+ {[%clk 0:01:07]}  Qxe8 {[%clk 0:01:32]} 30. h4 {[%clk 0:01:08]}  h5 {[%clk 0:01:29]} 31. Kg2 {[%clk 0:01:06]}  Qe4+ {[%clk 0:01:27]} 32. Kh2 {[%clk 0:01:07]}  Qe2 {[%clk 0:01:23]} 33. Kg2 {[%clk 0:01:05]} 1/2-1/2


[Site "https://www.chess.com"]

[Event "Titled Tuesday Blitz March 21 Early 2023"]
[White "Orlov, Georgi"]
[Black "Fernandez Garcia, Gumersindo"]
[WhiteFideId "2011271"]
[BlackFideId "24516740"]
[WhiteElo "2616"]
[BlackElo "2093"]
[Result "1-0"]
[Round "07"]
[TimeControl "180+2"]
[Date "2023.03.21"]
[WhiteClock "0:00:41"]
[BlackClock "0:00:14"]

1. e4 {[%clk 0:03:00]}  c5 {[%clk 0:02:55]} 2. Nf3 {[%clk 0:03:00]}  g6 {[%clk 0:02:55]} 3. c3 {[%clk 0:02:57]}  Bg7 {[%clk 0:02:55]} 4. d4 {[%clk 0:02:57]}  cxd4 {[%clk 0:02:56]} 5. cxd4 {[%clk 0:02:57]}  d5 {[%clk 0:02:56]} 6. exd5 {[%clk 0:02:55]}  Nf6 {[%clk 0:02:56]} 7. Bb5+ {[%clk 0:02:55]}  Bd7 {[%clk 0:02:56]} 8. Bc4 {[%clk 0:02:54]}  O-O {[%clk 0:02:57]} 9. Nc3 {[%clk 0:02:53]}  b5 {[%clk 0:02:54]} 10. Bxb5 {[%clk 0:02:49]}  Bxb5 {[%clk 0:02:53]} 11. Nxb5 {[%clk 0:02:49]}  Nxd5 {[%clk 0:02:49]} 12. O-O {[%clk 0:02:48]}  Nc6 {[%clk 0:02:48]} 13. Nc3 {[%clk 0:02:45]}  Nb6 {[%clk 0:02:46]} 14. Be3 {[%clk 0:02:42]}  e6 {[%clk 0:02:44]} 15. Qd3 {[%clk 0:02:32]}  Rc8 {[%clk 0:02:42]} 16. Rfd1 {[%clk 0:02:29]}  Nb4 {[%clk 0:02:39]} 17. Qe2 {[%clk 0:02:28]}  Nc4 {[%clk 0:02:38]} 18. Bg5 {[%clk 0:02:20]}  Qa5 {[%clk 0:02:33]} 19. Be7 {[%clk 0:02:12]}  Rfe8 {[%clk 0:02:30]} 20. Bc5 {[%clk 0:02:12]}  Nb6 {[%clk 0:02:18]} 21. a3 {[%clk 0:02:08]}  N4d5 {[%clk 0:02:17]} 22. Ne4 {[%clk 0:02:05]}  Red8 {[%clk 0:01:58]} 23. a4 {[%clk 0:01:49]}  Nd7 {[%clk 0:01:54]} 24. Nd6 {[%clk 0:01:44]}  Rc7 {[%clk 0:01:48]} 25. Nxf7 {[%clk 0:01:40]}  Kxf7 {[%clk 0:00:34]} 26. Ng5+ {[%clk 0:01:30]}  Kf6 {[%clk 0:00:35]} 27. Nxh7+ {[%clk 0:01:25]}  Kf7 {[%clk 0:00:34]} 28. Ng5+ {[%clk 0:01:24]}  Kf6 {[%clk 0:00:34]} 29. h4 {[%clk 0:01:02]}  Nxc5 {[%clk 0:00:30]} 30. Qe5+ {[%clk 0:00:58]}  Ke7 {[%clk 0:00:28]} 31. Qxg7+ {[%clk 0:00:58]}  Ke8 {[%clk 0:00:26]} 32. Qxg6+ {[%clk 0:00:58]}  Kd7 {[%clk 0:00:25]} 33. dxc5 {[%clk 0:00:57]}  Re8 {[%clk 0:00:21]} 34. Nxe6 {[%clk 0:00:52]}  Rxe6 {[%clk 0:00:13]} 35. Rxd5+ {[%clk 0:00:52]}  Ke7 {[%clk 0:00:14]} 36. Qg5+ {[%clk 0:00:47]}  Ke8 {[%clk 0:00:13]} 37. Rd8+ {[%clk 0:00:46]}  Kf7 {[%clk 0:00:13]} 38. Qg8+ {[%clk 0:00:42]}  Ke7 {[%clk 0:00:14]} 39. Qf8# {[%clk 0:00:41]} 1-0


[Site "https://www.chess.com"]

[Event "Titled Tuesday Blitz March 21 Early 2023"]
[White "Budrewicz, Krzysztof"]
[Black "Jakubowska, Anna"]
[WhiteFideId "1127950"]
[BlackFideId "1121952"]
[WhiteElo "2230"]
[BlackElo "2001"]
[Result "0-1"]
[Round "07"]
[TimeControl "180+2"]
[Date "2023.03.21"]
[WhiteClock "0:00:12"]
[BlackClock "0:00:05"]

1. d4 {[%clk 0:03:00]}  f5 {[%clk 0:02:59]} 2. h3 {[%clk 0:02:57]}  d6 {[%clk 0:02:54]} 3. Nf3 {[%clk 0:02:56]}  Nf6 {[%clk 0:02:46]} 4. c4 {[%clk 0:02:55]}  g6 {[%clk 0:02:39]} 5. Nc3 {[%clk 0:02:55]}  Bg7 {[%clk 0:02:39]} 6. h4 {[%clk 0:02:52]}  h6 {[%clk 0:02:27]} 7. Bf4 {[%clk 0:02:47]}  O-O {[%clk 0:02:15]} 8. Qd2 {[%clk 0:02:41]}  Kh7 {[%clk 0:02:14]} 9. g3 {[%clk 0:02:40]}  Ng4 {[%clk 0:02:04]} 10. d5 {[%clk 0:02:31]}  e5 {[%clk 0:01:59]} 11. dxe6 {[%clk 0:02:31]}  Bxe6 {[%clk 0:01:59]} 12. e3 {[%clk 0:02:22]}  Ne5 {[%clk 0:01:49]} 13. Bxe5 {[%clk 0:02:08]}  dxe5 {[%clk 0:01:49]} 14. Qxd8 {[%clk 0:02:08]}  Rxd8 {[%clk 0:01:49]} 15. Be2 {[%clk 0:02:02]}  Nc6 {[%clk 0:01:48]} 16. Nd2 {[%clk 0:01:58]}  e4 {[%clk 0:01:44]} 17. Nb3 {[%clk 0:01:56]}  Ne5 {[%clk 0:01:41]} 18. c5 {[%clk 0:01:50]}  Bc4 {[%clk 0:01:28]} 19. Nc1 {[%clk 0:01:45]}  Bxe2 {[%clk 0:01:19]} 20. Kxe2 {[%clk 0:01:44]}  Nf3 {[%clk 0:01:19]} 21. Nb3 {[%clk 0:01:41]}  Bxc3 {[%clk 0:01:13]} 22. bxc3 {[%clk 0:01:41]}  Rd5 {[%clk 0:01:12]} 23. Rhd1 {[%clk 0:01:40]}  Rad8 {[%clk 0:01:12]} 24. c6 {[%clk 0:01:21]}  bxc6 {[%clk 0:01:07]} 25. Nd4 {[%clk 0:01:12]}  c5 {[%clk 0:00:48]} 26. Nb3 {[%clk 0:00:57]}  Ne5 {[%clk 0:00:27]} 27. Rxd5 {[%clk 0:00:54]}  Rxd5 {[%clk 0:00:27]} 28. Rd1 {[%clk 0:00:54]}  Rxd1 {[%clk 0:00:25]} 29. Kxd1 {[%clk 0:00:55]}  Nd3 {[%clk 0:00:25]} 30. Ke2 {[%clk 0:00:55]}  Kg7 {[%clk 0:00:25]} 31. a4 {[%clk 0:00:54]}  Kf6 {[%clk 0:00:25]} 32. Na5 {[%clk 0:00:52]}  Nb2 {[%clk 0:00:17]} 33. c4 {[%clk 0:00:42]}  Ke6 {[%clk 0:00:14]} 34. Kd2 {[%clk 0:00:42]}  Nxa4 {[%clk 0:00:14]} 35. Kc2 {[%clk 0:00:42]}  Nb6 {[%clk 0:00:13]} 36. Kb3 {[%clk 0:00:42]}  g5 {[%clk 0:00:13]} 37. h5 {[%clk 0:00:39]}  a6 {[%clk 0:00:11]} 38. Nb7 {[%clk 0:00:38]}  Nd7 {[%clk 0:00:11]} 39. Nd8+ {[%clk 0:00:37]}  Kf6 {[%clk 0:00:10]} 40. Nc6 {[%clk 0:00:34]}  Ne5 {[%clk 0:00:09]} 41. Nb8 {[%clk 0:00:31]}  Nd3 {[%clk 0:00:09]} 42. Nd7+ {[%clk 0:00:31]}  Ke6 {[%clk 0:00:08]} 43. Nf8+ {[%clk 0:00:29]}  Kf7 {[%clk 0:00:08]} 44. Nd7 {[%clk 0:00:29]}  Nxf2 {[%clk 0:00:09]} 45. Nxc5 {[%clk 0:00:29]}  Ng4 {[%clk 0:00:08]} 46. Nxa6 {[%clk 0:00:28]}  Nxe3 {[%clk 0:00:09]} 47. Nxc7 {[%clk 0:00:28]}  Nf1 {[%clk 0:00:08]} 48. c5 {[%clk 0:00:25]}  e3 {[%clk 0:00:09]} 49. Nd5 {[%clk 0:00:17]}  e2 {[%clk 0:00:09]} 50. c6 {[%clk 0:00:17]}  e1=Q {[%clk 0:00:09]} 51. c7 {[%clk 0:00:18]}  Qxg3+ {[%clk 0:00:08]} 52. Kc4 {[%clk 0:00:18]}  Nd2+ {[%clk 0:00:07]} 53. Kc5 {[%clk 0:00:18]}  Ne4+ {[%clk 0:00:07]} 54. Kc6 {[%clk 0:00:18]}  Nd6 {[%clk 0:00:08]} 55. Nb6 {[%clk 0:00:14]}  Qe5 {[%clk 0:00:07]} 56. Nd7 {[%clk 0:00:14]}  Qh2 {[%clk 0:00:06]} 57. Nc5 {[%clk 0:00:12]}  g4 {[%clk 0:00:05]} 0-1


[Site "https://www.chess.com"]

[Event "Titled Tuesday Blitz March 21 Early 2023"]
[White "Safin, Robert"]
[Black "Carrasco Miranda, Andres"]
[WhiteFideId "34189120"]
[BlackFideId "3405990"]
[WhiteElo "2245"]
[BlackElo "2183"]
[Result "0-1"]
[Round "07"]
[TimeControl "180+2"]
[Date "2023.03.21"]
[WhiteClock "0:00:02"]
[BlackClock "0:00:07"]

1. e4 {[%clk 0:03:00]}  c5 {[%clk 0:02:54]} 2. c3 {[%clk 0:03:00]}  d5 {[%clk 0:02:54]} 3. exd5 {[%clk 0:03:01]}  Qxd5 {[%clk 0:02:54]} 4. d4 {[%clk 0:03:02]}  g6 {[%clk 0:02:55]} 5. Nf3 {[%clk 0:02:55]}  Bg7 {[%clk 0:02:51]} 6. Nbd2 {[%clk 0:02:55]}  cxd4 {[%clk 0:02:50]} 7. Bc4 {[%clk 0:02:54]}  Qd8 {[%clk 0:02:49]} 8. Nxd4 {[%clk 0:02:54]}  Nh6 {[%clk 0:02:44]} 9. N2f3 {[%clk 0:02:48]}  O-O {[%clk 0:02:41]} 10. O-O {[%clk 0:02:48]}  Qc7 {[%clk 0:02:35]} 11. Qb3 {[%clk 0:02:39]}  a6 {[%clk 0:02:31]} 12. a4 {[%clk 0:02:38]}  Nd7 {[%clk 0:02:26]} 13. Re1 {[%clk 0:02:34]}  Nc5 {[%clk 0:02:22]} 14. Qa2 {[%clk 0:02:32]}  Nf5 {[%clk 0:02:07]} 15. Bg5 {[%clk 0:02:25]}  e5 {[%clk 0:01:48]} 16. Nc2 {[%clk 0:01:54]}  e4 {[%clk 0:01:39]} 17. Nfd4 {[%clk 0:01:53]}  Nxd4 {[%clk 0:01:33]} 18. Nxd4 {[%clk 0:01:52]}  h6 {[%clk 0:01:22]} 19. Be3 {[%clk 0:01:51]}  Kh7 {[%clk 0:01:07]} 20. Rad1 {[%clk 0:01:41]}  f5 {[%clk 0:01:05]} 21. Ne6 {[%clk 0:01:37]}  Nxe6 {[%clk 0:01:04]} 22. Bxe6 {[%clk 0:01:38]}  f4 {[%clk 0:01:01]} 23. Bd4 {[%clk 0:01:33]}  Bxe6 {[%clk 0:00:49]} 24. Qxe6 {[%clk 0:01:32]}  Rae8 {[%clk 0:00:49]} 25. Qb6 {[%clk 0:01:28]}  Qf7 {[%clk 0:00:40]} 26. Bxg7 {[%clk 0:01:24]}  Qxg7 {[%clk 0:00:41]} 27. Qd4 {[%clk 0:01:17]}  Qe7 {[%clk 0:00:23]} 28. Qd7 {[%clk 0:01:17]}  Rf7 {[%clk 0:00:20]} 29. Qxe7 {[%clk 0:01:12]}  Rfxe7 {[%clk 0:00:21]} 30. Rd4 {[%clk 0:01:00]}  Kg7 {[%clk 0:00:19]} 31. Kf1 {[%clk 0:00:29]}  g5 {[%clk 0:00:18]} 32. Ke2 {[%clk 0:00:26]}  e3 {[%clk 0:00:16]} 33. f3 {[%clk 0:00:24]}  Kf6 {[%clk 0:00:16]} 34. Red1 {[%clk 0:00:22]}  Re6 {[%clk 0:00:16]} 35. Rd6 {[%clk 0:00:20]}  Rxd6 {[%clk 0:00:15]} 36. Rxd6+ {[%clk 0:00:19]}  Re6 {[%clk 0:00:16]} 37. Rd7 {[%clk 0:00:11]}  Rb6 {[%clk 0:00:16]} 38. b4 {[%clk 0:00:11]}  h5 {[%clk 0:00:16]} 39. a5 {[%clk 0:00:08]}  Rc6 {[%clk 0:00:16]} 40. Kd3 {[%clk 0:00:05]}  Ke5 {[%clk 0:00:13]} 41. h3 {[%clk 0:00:02]}  Rd6+ {[%clk 0:00:13]} 42. Rxd6 {[%clk 0:00:01]}  Kxd6 {[%clk 0:00:14]} 43. c4 {[%clk 0:00:01]}  h4 {[%clk 0:00:13]} 44. Ke2 {[%clk 0:00:01]}  Ke5 {[%clk 0:00:13]} 45. Kd3 {[%clk 0:00:01]}  Ke6 {[%clk 0:00:13]} 46. Kc3 {[%clk 0:00:01]}  Kd6 {[%clk 0:00:12]} 47. Kd3 {[%clk 0:00:02]}  Kc6 {[%clk 0:00:13]} 48. Kc3 {[%clk 0:00:02]}  b6 {[%clk 0:00:11]} 49. axb6 {[%clk 0:00:02]}  Kxb6 {[%clk 0:00:12]} 50. Kd3 {[%clk 0:00:01]}  a5 {[%clk 0:00:09]} 51. b5 {[%clk 0:00:02]}  a4 {[%clk 0:00:08]} 52. Kc3 {[%clk 0:00:02]}  a3 {[%clk 0:00:07]} 0-1


[Site "https://www.chess.com"]

[Event "Titled Tuesday Blitz March 21 Early 2023"]
[White "Jeet, Jain"]
[Black "Harriott, Tyrell"]
[WhiteFideId "5073022"]
[BlackFideId "2086484"]
[WhiteElo "2067"]
[BlackElo "2107"]
[Result "1-0"]
[Round "07"]
[TimeControl "180+2"]
[Date "2023.03.21"]
[WhiteClock "0:00:12"]
[BlackClock "0:00:02"]

1. Nf3 {[%clk 0:03:00]}  d5 {[%clk 0:02:55]} 2. g3 {[%clk 0:03:01]}  e6 {[%clk 0:02:56]} 3. Bg2 {[%clk 0:03:01]}  Bd6 {[%clk 0:02:56]} 4. O-O {[%clk 0:03:02]}  f5 {[%clk 0:02:57]} 5. d3 {[%clk 0:02:58]}  Nf6 {[%clk 0:02:56]} 6. c4 {[%clk 0:02:58]}  O-O {[%clk 0:02:55]} 7. b3 {[%clk 0:02:56]}  Nbd7 {[%clk 0:02:53]} 8. Bb2 {[%clk 0:02:56]}  f4 {[%clk 0:02:53]} 9. Nc3 {[%clk 0:02:49]}  Qe8 {[%clk 0:02:52]} 10. Nb5 {[%clk 0:02:47]}  fxg3 {[%clk 0:02:51]} 11. hxg3 {[%clk 0:02:46]}  Ng4 {[%clk 0:02:50]} 12. Nxd6 {[%clk 0:02:45]}  Qh5 {[%clk 0:02:45]} 13. Re1 {[%clk 0:02:30]}  cxd6 {[%clk 0:02:44]} 14. cxd5 {[%clk 0:02:17]}  e5 {[%clk 0:02:29]} 15. Qd2 {[%clk 0:02:11]}  h6 {[%clk 0:02:27]} 16. Rac1 {[%clk 0:02:09]}  Nb6 {[%clk 0:02:22]} 17. a4 {[%clk 0:01:58]}  Nxd5 {[%clk 0:02:08]} 18. Ba3 {[%clk 0:01:58]}  Rf6 {[%clk 0:02:00]} 19. Qc2 {[%clk 0:01:54]}  Bd7 {[%clk 0:01:48]} 20. Qa2 {[%clk 0:01:47]}  Kh8 {[%clk 0:01:42]} 21. b4 {[%clk 0:01:46]}  Be6 {[%clk 0:01:27]} 22. Qd2 {[%clk 0:01:39]}  Raf8 {[%clk 0:01:20]} 23. b5 {[%clk 0:01:38]}  Bg8 {[%clk 0:01:18]} 24. Rc2 {[%clk 0:01:25]}  Nb6 {[%clk 0:01:12]} 25. a5 {[%clk 0:01:16]}  Nd5 {[%clk 0:00:51]} 26. Rec1 {[%clk 0:01:13]}  Ne7 {[%clk 0:00:51]} 27. Rc7 {[%clk 0:01:12]}  Bd5 {[%clk 0:00:49]} 28. Rxe7 {[%clk 0:00:27]}  Bxf3 {[%clk 0:00:38]} 29. exf3 {[%clk 0:00:26]}  Rxf3 {[%clk 0:00:29]} 30. Rc8 {[%clk 0:00:24]}  Qh2+ {[%clk 0:00:22]} 31. Kf1 {[%clk 0:00:24]}  Rxc8 {[%clk 0:00:12]} 32. Bxf3 {[%clk 0:00:24]}  Qh3+ {[%clk 0:00:12]} 33. Ke2 {[%clk 0:00:20]}  Nh2 {[%clk 0:00:11]} 34. Bd5 {[%clk 0:00:16]}  Rf8 {[%clk 0:00:10]} 35. Qe3 {[%clk 0:00:14]}  Qf1+ {[%clk 0:00:10]} 36. Kd2 {[%clk 0:00:14]}  Rxf2+ {[%clk 0:00:09]} 37. Kc3 {[%clk 0:00:14]}  Qa1+ {[%clk 0:00:08]} 38. Kb4 {[%clk 0:00:14]}  Qb1+ {[%clk 0:00:07]} 39. Bb3 {[%clk 0:00:14]}  Rf8 {[%clk 0:00:03]} 40. Qe4 {[%clk 0:00:13]}  Nf3 {[%clk 0:00:01]} 41. Qg6 {[%clk 0:00:12]}  Qe1+ {[%clk 0:00:02]} 42. Ka4 {[%clk 0:00:12]} 1-0


[Site "https://www.chess.com"]

[Event "Titled Tuesday Blitz March 21 Early 2023"]
[White "Jovic, Stanoje"]
[Black "Decuigniere, Tom"]
[WhiteFideId "905020"]
[BlackFideId "26093820"]
[WhiteElo "2236"]
[BlackElo "2312"]
[Result "1-0"]
[Round "07"]
[TimeControl "180+2"]
[Date "2023.03.21"]
[WhiteClock "0:00:14"]
[BlackClock "0:00:08"]

1. c4 {[%clk 0:03:00]}  c5 {[%clk 0:02:59]} 2. g3 {[%clk 0:03:00]}  g6 {[%clk 0:02:59]} 3. Bg2 {[%clk 0:03:01]}  Bg7 {[%clk 0:03:00]} 4. Nc3 {[%clk 0:03:01]}  Nc6 {[%clk 0:03:00]} 5. Nf3 {[%clk 0:03:01]}  d6 {[%clk 0:03:00]} 6. O-O {[%clk 0:03:00]}  Bf5 {[%clk 0:03:01]} 7. Nh4 {[%clk 0:02:54]}  Bd7 {[%clk 0:02:54]} 8. e3 {[%clk 0:02:51]}  Nh6 {[%clk 0:02:52]} 9. d4 {[%clk 0:02:51]}  Bg4 {[%clk 0:02:21]} 10. f3 {[%clk 0:02:47]}  Bd7 {[%clk 0:02:16]} 11. d5 {[%clk 0:02:42]}  Ne5 {[%clk 0:02:13]} 12. Qe2 {[%clk 0:02:24]}  g5 {[%clk 0:02:13]} 13. f4 {[%clk 0:02:24]}  Bg4 {[%clk 0:02:02]} 14. Qc2 {[%clk 0:02:23]}  gxh4 {[%clk 0:01:58]} 15. fxe5 {[%clk 0:02:21]}  Bxe5 {[%clk 0:01:57]} 16. gxh4 {[%clk 0:02:20]}  e6 {[%clk 0:01:18]} 17. Qf2 {[%clk 0:02:14]}  Bf5 {[%clk 0:01:03]} 18. dxe6 {[%clk 0:02:02]}  fxe6 {[%clk 0:01:01]} 19. Bxb7 {[%clk 0:02:01]}  Ng4 {[%clk 0:00:59]} 20. Qg2 {[%clk 0:01:45]}  Rb8 {[%clk 0:00:36]} 21. Bc6+ {[%clk 0:01:40]}  Ke7 {[%clk 0:00:37]} 22. e4 {[%clk 0:01:30]}  Bxh2+ {[%clk 0:00:09]} 23. Kh1 {[%clk 0:01:20]}  Rg8 {[%clk 0:00:09]} 24. exf5 {[%clk 0:01:16]}  Ne3 {[%clk 0:00:08]} 25. Qe4 {[%clk 0:00:56]}  Nxf1 {[%clk 0:00:07]} 26. Qxe6+ {[%clk 0:00:54]}  Kf8 {[%clk 0:00:08]} 27. Bh6+ {[%clk 0:00:49]}  Rg7 {[%clk 0:00:08]} 28. Rxf1 {[%clk 0:00:41]}  Qxh4 {[%clk 0:00:07]} 29. Bxg7+ {[%clk 0:00:34]}  Kxg7 {[%clk 0:00:08]} 30. Qe4 {[%clk 0:00:14]} 1-0


[Site "https://www.chess.com"]

[Event "Titled Tuesday Blitz March 21 Early 2023"]
[White "Kim, Sergey"]
[Black "Meunier-Pion, Jean"]
[WhiteFideId "13700570"]
[BlackFideId "20685327"]
[WhiteElo "2594"]
[BlackElo "2124"]
[Result "1-0"]
[Round "07"]
[TimeControl "180+2"]
[Date "2023.03.21"]
[WhiteClock "0:00:20"]
[BlackClock "0:00:04"]

1. d4 {[%clk 0:03:00]}  Nf6 {[%clk 0:02:57]} 2. c4 {[%clk 0:03:01]}  e6 {[%clk 0:02:57]} 3. Nc3 {[%clk 0:03:01]}  Bb4 {[%clk 0:02:56]} 4. Qc2 {[%clk 0:03:01]}  O-O {[%clk 0:02:53]} 5. a3 {[%clk 0:03:01]}  Bxc3+ {[%clk 0:02:52]} 6. Qxc3 {[%clk 0:03:02]}  d5 {[%clk 0:02:50]} 7. Nf3 {[%clk 0:03:02]}  b6 {[%clk 0:02:45]} 8. g3 {[%clk 0:03:01]}  dxc4 {[%clk 0:02:42]} 9. Qxc4 {[%clk 0:03:01]}  Ba6 {[%clk 0:02:43]} 10. Qc2 {[%clk 0:03:01]}  c5 {[%clk 0:02:40]} 11. dxc5 {[%clk 0:03:01]}  Nbd7 {[%clk 0:02:38]} 12. c6 {[%clk 0:03:01]}  Rc8 {[%clk 0:02:23]} 13. Bg2 {[%clk 0:03:01]}  Qc7 {[%clk 0:02:10]} 14. Nd4 {[%clk 0:02:54]}  e5 {[%clk 0:02:02]} 15. Nf5 {[%clk 0:02:53]}  Nb8 {[%clk 0:01:54]} 16. O-O {[%clk 0:02:37]}  Kh8 {[%clk 0:01:34]} 17. Bg5 {[%clk 0:02:31]}  Nxc6 {[%clk 0:01:31]} 18. Bxf6 {[%clk 0:02:16]}  gxf6 {[%clk 0:01:29]} 19. Rac1 {[%clk 0:02:15]}  Bb7 {[%clk 0:01:10]} 20. Qa4 {[%clk 0:01:46]}  Qd7 {[%clk 0:01:03]} 21. Qg4 {[%clk 0:01:22]}  Rg8 {[%clk 0:00:57]} 22. Qh3 {[%clk 0:01:22]}  Rg5 {[%clk 0:00:33]} 23. Nh6 {[%clk 0:01:15]}  Qxh3 {[%clk 0:00:28]} 24. Bxh3 {[%clk 0:01:14]}  Rf8 {[%clk 0:00:16]} 25. Bg2 {[%clk 0:01:07]}  Nd4 {[%clk 0:00:16]} 26. Bxb7 {[%clk 0:00:55]}  Nxe2+ {[%clk 0:00:16]} 27. Kg2 {[%clk 0:00:41]}  Nxc1 {[%clk 0:00:17]} 28. Rxc1 {[%clk 0:00:41]}  Kg7 {[%clk 0:00:17]} 29. h4 {[%clk 0:00:41]}  Kxh6 {[%clk 0:00:15]} 30. hxg5+ {[%clk 0:00:40]}  fxg5 {[%clk 0:00:16]} 31. Rc7 {[%clk 0:00:37]}  Kg6 {[%clk 0:00:15]} 32. g4 {[%clk 0:00:36]}  a5 {[%clk 0:00:13]} 33. Be4+ {[%clk 0:00:35]}  Kg7 {[%clk 0:00:14]} 34. Rb7 {[%clk 0:00:33]}  Rd8 {[%clk 0:00:14]} 35. Rxb6 {[%clk 0:00:33]}  Rd4 {[%clk 0:00:14]} 36. f3 {[%clk 0:00:32]}  Rd2+ {[%clk 0:00:12]} 37. Kg3 {[%clk 0:00:32]}  Rd1 {[%clk 0:00:12]} 38. Rb7 {[%clk 0:00:29]}  Rg1+ {[%clk 0:00:12]} 39. Kf2 {[%clk 0:00:29]}  Rd1 {[%clk 0:00:13]} 40. b4 {[%clk 0:00:27]}  Rd2+ {[%clk 0:00:08]} 41. Kg3 {[%clk 0:00:26]}  Ra2 {[%clk 0:00:09]} 42. bxa5 {[%clk 0:00:24]}  Rxa3 {[%clk 0:00:09]} 43. Rb5 {[%clk 0:00:24]}  h5 {[%clk 0:00:09]} 44. gxh5 {[%clk 0:00:24]}  f5 {[%clk 0:00:08]} 45. Bxf5 {[%clk 0:00:24]}  g4 {[%clk 0:00:08]} 46. Bxg4 {[%clk 0:00:24]}  e4 {[%clk 0:00:05]} 47. Rb7+ {[%clk 0:00:21]}  Kh6 {[%clk 0:00:05]} 48. Rb6+ {[%clk 0:00:20]}  Kg5 {[%clk 0:00:04]} 49. Rg6# {[%clk 0:00:20]} 1-0


[Site "https://www.chess.com"]